fUST/lending_fUST_20241102
["ID","MTS","AMOUNT","RATE_DAILY","PERIOD"]
[341174576,1730531432261,-153.0,0.00030795,2]
[341174578,1730531432271,-303.0898104,0.00030795,2]
[341174580,1730531432281,-158.4864813,0.00030795,2]
[341174582,1730531432290,-302.9341095,0.00030795,2]
[341174583,1730531432299,-215.5797732,0.00030832,2]
[341174585,1730531432310,-181.66,0.0003109,3]
[341174587,1730531432319,-545.0,0.0003109,3]
[341174589,1730531432330,-160.0,0.00031098,2]
[341174591,1730531432341,-500.0,0.00031099,4]
[341174594,1730531432352,-377.7584686,0.00031099,3]
[341174614,1730531438366,-801.3515314,0.00031099,3]
[341174615,1730531438376,-48144.13890716,0.000311,30]
[341174616,1730531438470,-6230.45525653,0.000311,30]
[341174624,1730531440245,-254.52120144,0.000311,30]
[341174625,1730531440258,-770.359144,0.000311,30]
[341174626,1730531440270,-1600.45439914,0.000311,30]
[341174627,1730531440283,-566.57167465,0.000311,30]
[341174628,1730531440295,-596.45138576,0.000311,30]
[341174645,1730531500723,7272.7625164,0.00028762,2]
[341174671,1730532427109,-162.0,0.00028,2]
[341174672,1730532427131,-162.950701,0.00028734,2]
[341174673,1730532427152,-185.35838,0.00029279,2]
[341174674,1730532427172,-476.8157899,0.00029431,2]
[341174675,1730532427193,-185.35838,0.00029964,2]
[341174676,1730532427214,-178.0,0.0003,2]
[341174677,1730532427238,-166.0,0.0003,2]
[341174678,1730532427260,-207.6566207,0.00030178,2]
[341174679,1730532427280,-178.0,0.00030411,2]
[341174680,1730532427301,-185.35838,0.00030649,2]
[341174681,1730532427321,-155.68227533,0.000309,2]
[341174682,1730532427342,-709.33604365,0.00031,15]
[341174702,1730532518357,8636.72723785,0.0002,2]
[341174707,1730532528983,4347.40462812,0.00015,2]
[341174712,1730532549154,-4305.90561129,0.0002066,7]
[341174713,1730532549175,-5047.8962671,0.00025,2]
[341174714,1730532549196,-2090.0634048,0.0002509,2]
[341174715,1730532564110,-309.1257563,0.00030552,2]
[341174716,1730532564136,-124.5906779,0.00031,15]
[341174720,1730532579768,159.5000756,0.00013973,2]
[341174746,1730532632490,-4261.83327845,0.00031,15]
[341174747,1730532632500,-8.91696876,0.00031,2]
[341174748,1730532632513,-182.31619873,0.00031,2]
[341174749,1730532632522,-363.32,0.0003109,3]
[341174750,1730532632531,-10.43894233,0.00031098,4]
[341174775,1730532638515,-489.56105767,0.00031098,4]
[341174777,1730532638524,-509.35395044,0.00031098,4]
[341174779,1730532638534,-532.26999794,0.00031098,4]
[341174781,1730532638544,-500.0,0.00031098,4]
[341174783,1730532638553,-500.0,0.00031098,4]
[341174785,1730532638562,-500.0,0.00031098,4]
[341174787,1730532638571,-77.34473406,0.00031098,4]
[341174853,1730532640566,-334.90895013,0.00031098,4]
[341174856,1730532640585,-87.74631581,0.00031098,4]
[341174858,1730532640597,-1129.98,0.00031098,3]
[341174860,1730532640609,-918.52030106,0.00031098,2]
[341174926,1730532646401,-172.0,0.0003,2]
[341174927,1730532646412,-4081.47969894,0.00031098,2]
[341174928,1730532646422,-500.0,0.00031099,4]
[341174929,1730532646432,-538.36843076,0.00031099,4]
[341174930,1730532646442,-500.0,0.00031099,4]
[341174931,1730532646452,-500.0,0.00031099,4]
[341174932,1730532646463,-500.0,0.00031099,2]
[341174933,1730532646472,-500.0,0.00031099,2]
[341174934,1730532646481,-500.0,0.00031099,2]
[341174935,1730532646491,-529.39622796,0.00031099,2]
[341174936,1730532646501,-500.0,0.00031099,4]
[341174937,1730532646511,-500.0,0.00031099,4]
[341174939,1730532646523,-512.11,0.00031099,4]
[341174940,1730532646533,-426.21914816,0.00031099,4]
[341174943,1730532646544,-500.0,0.00031099,2]
[341174945,1730532646554,-500.0,0.00031099,2]
[341174947,1730532646563,-200.10805564,0.00031099,2]
[341174949,1730532646577,-141837.04803132,0.000311,30]
[341174951,1730532646587,-465.74480178,0.00031286,2]
[341174953,1730532646597,-418.10722219,0.00031372,2]
[341174955,1730532646606,-500.0,0.00031372,4]
[341174957,1730532646616,-430.67774546,0.00031372,4]
[341174959,1730532646626,-1129.98,0.00031372,3]
[341174961,1730532646636,-500.0,0.00031373,4]
[341174962,1730532646645,-500.0,0.00031373,4]
[341174963,1730532646654,-500.0,0.00031373,4]
[341174964,1730532646664,-500.0,0.00031373,4]
[341174965,1730532646674,-516.016178,0.0003154,2]
[341174967,1730532646684,-190.0,0.00031605,2]
[341174969,1730532646694,-190.0,0.00031605,2]
[341174971,1730532646704,-190.0,0.00031605,2]
[341174973,1730532646713,-190.0,0.00031605,2]
[341174974,1730532646723,-190.0,0.00031605,2]
[341174976,1730532646733,-190.0,0.00031605,2]
[341174978,1730532646743,-190.0,0.00031605,2]
[341174980,1730532646752,-190.0,0.00031605,2]
[341174982,1730532646762,-190.0,0.00031605,2]
[341174983,1730532646774,-190.0,0.00031605,2]
[341174985,1730532646783,-190.0,0.00031605,2]
[341174987,1730532646792,-190.0,0.00031605,2]
[341174988,1730532646802,-190.0,0.00031605,2]
[341174989,1730532646811,-153.0,0.00031605,2]
[341174990,1730532646821,-190.0,0.00031605,2]
[341174991,1730532646830,-190.0,0.00031605,2]
[341174992,1730532646840,-190.0,0.00031605,2]
[341174993,1730532646850,-190.0,0.00031605,2]
[341174994,1730532646859,-190.0,0.00031605,2]
[341174995,1730532646869,-190.0,0.00031605,2]
[341174996,1730532646879,-190.0,0.00031605,2]
[341174997,1730532646889,-190.0,0.00031605,2]
[341174998,1730532646899,-190.0,0.00031605,2]
[341174999,1730532646908,-190.0,0.00031605,2]
[341175000,1730532646918,-190.0,0.00031605,2]
[341175001,1730532646928,-190.0,0.00031605,2]
[341175002,1730532646939,-190.0,0.00031605,2]
[341175003,1730532646948,-190.0,0.00031605,2]
[341175004,1730532646958,-153.0,0.00031605,2]
[341175005,1730532646968,-153.0,0.00031605,2]
[341175006,1730532646978,-500.0,0.00031646,4]
[341175007,1730532646987,-1129.98,0.00031646,3]
[341175008,1730532646997,-500.0,0.00031647,4]
[341175009,1730532647005,-500.0,0.00031647,4]
[341175010,1730532647014,-500.0,0.00031647,4]
[341175011,1730532647026,-553.1656997,0.00031787,5]
[341175012,1730532647039,-500.0,0.0003192,4]
[341175013,1730532647049,-1129.98,0.0003192,3]
[341175014,1730532647059,-500.0,0.00031921,4]
[341175015,1730532647068,-500.0,0.00031921,4]
[341175016,1730532647077,-580.22225438,0.00031921,4]
[341175017,1730532647087,-528.0,0.00031925,2]
[341175018,1730532647096,-1144.0,0.00031925,2]
[341175019,1730532647106,-2396.0,0.00031925,2]
[341175020,1730532647115,-150.0,0.00032013,2]
[341175021,1730532647125,-150.787,0.00032013,2]
[341175022,1730532647137,-516.016178,0.0003204,2]
[341175023,1730532647147,-161.52,0.0003212,2]
[341175024,1730532647158,-500.0,0.00032194,4]
[341175025,1730532647169,-1129.98,0.00032194,3]
[341175026,1730532647179,-500.0,0.00032195,4]
[341175027,1730532647189,-514.0,0.000322,2]
[341175028,1730532647199,-150.0,0.000322,2]
[341175029,1730532647209,-680.85447628,0.0003226,2]
[341175030,1730532647220,-7140.9336825,0.00032265,2]
[341175031,1730532647231,-151.34117632,0.00032344,2]
[341175032,1730532647338,-211.079098,0.00032438,2]
[341175033,1730532647353,-153.0,0.00032438,2]
[341175034,1730532647363,-211.079098,0.00032438,2]
[341175035,1730532647373,-153.0,0.00032438,2]
[341175036,1730532647382,-211.079098,0.00032438,2]
[341175037,1730532647391,-153.0,0.00032438,2]
[341175038,1730532647400,-211.079098,0.00032438,2]
[341175039,1730532647409,-211.079098,0.00032438,2]
[341175040,1730532647418,-153.0,0.00032438,2]
[341175041,1730532647428,-153.0,0.00032438,2]
[341175042,1730532647439,-155.7179992,0.00032438,2]
[341175043,1730532647450,-500.0,0.00032468,4]
[341175044,1730532647460,-1129.98,0.00032468,3]
[341175045,1730532647470,-500.0,0.00032469,4]
[341175046,1730532647482,-516.016178,0.0003254,2]
[341175047,1730532647491,-500.0,0.00032673,2]
[341175048,1730532647502,-500.0,0.00032673,5]
[341175049,1730532647515,-324.13186368,0.00032742,4]
[341175050,1730532647525,-1129.98,0.00032742,3]
[341175051,1730532647536,-500.0,0.00032743,4]
[341175052,1730532647545,-1209.26101949,0.00032876,2]
[341175053,1730532647555,-500.0,0.00032876,7]
[341175054,1730532647566,-309.351307,0.00032877,120]
[341175055,1730532647576,-415.810816,0.00032877,60]
[341175056,1730532647586,-183.774732,0.00032926,2]
[341175057,1730532647595,-178.422973,0.00032926,2]
[341175058,1730532647604,-162.055525,0.00032926,2]
[341175059,1730532647613,-179.471352,0.00032926,2]
[341175060,1730532647622,-5000.0,0.00033,20]
[341175061,1730532647631,-10000.0,0.00033,10]
[341175062,1730532647641,-1129.98,0.00033016,3]
[341175063,1730532647650,-500.0,0.00033017,4]
[341175064,1730532647660,-516.016178,0.0003304,2]
[341175065,1730532647669,-191.23316749,0.00033169,2]
[341175066,1730532647680,-1000.0,0.00033169,2]
[341175067,1730532647690,-1360.4716671,0.000332,120]
[341175068,1730532647699,-14074.0,0.00033268,30]
[341175069,1730532647708,-47402.03962454,0.00033269,10]
[341175070,1730532647722,-781.21087294,0.00033269,10]
[341175071,1730532647733,-524.68895133,0.00033269,10]
[341175072,1730532864619,1212.00001212,0.00033205,30]
[341175076,1730533275719,3484.2,0.00033258,30]
[341175079,1730533699799,161.257407,0.00013973,2]
[341175080,1730533745208,-166.351629,0.00028071,2]
[341175081,1730533745230,-217.4830701,0.00028603,2]
[341175082,1730533745251,-162.2310099,0.00028663,2]
[341175083,1730533747123,-814.67451374,0.00029064,2]
[341175084,1730533747144,-300.0,0.00029064,2]
[341175085,1730533747165,-300.0,0.00029064,2]
[341175086,1730533747187,-19785.7282994,0.00029065,2]
[341175087,1730533747207,-172.061613,0.00029308,2]
[341175088,1730533752130,-172.061613,0.00029818,2]
[341175089,1730533752250,-303.08257438,0.00029888,2]
[341175090,1730533768103,-202.0,0.0003,2]
[341175091,1730533768127,-165.0,0.0003,2]
[341175092,1730533768152,-850.55,0.00030136,3]
[341175093,1730533768177,-500.0,0.00030136,4]
[341175094,1730533768200,-500.0,0.00030136,4]
[341175095,1730533768223,-500.0,0.00030136,4]
[341175096,1730533768246,-500.0,0.00030136,4]
[341175097,1730533768271,-500.0,0.00030136,4]
[341175098,1730533768294,-172.061613,0.00030327,2]
[341175099,1730533768321,-340.59402147,0.0003041,3]
[341175137,1730533832677,-172.061613,0.00030106,2]
[341175138,1730533832687,-800.92,0.00030136,3]
[341175139,1730533832698,-500.0,0.00030136,4]
[341175140,1730533832708,-500.0,0.00030136,4]
[341175141,1730533832717,-254.47,0.0003041,4]
[341175142,1730533832728,-303.78,0.0003041,4]
[341175143,1730533832738,-800.92,0.0003041,3]
[341175144,1730533832748,-500.0,0.0003041,4]
[341175145,1730533832757,-202.0,0.00030411,2]
[341175146,1730533832767,-1353.68141377,0.00030522,2]
[341175147,1730533832777,-500.0,0.00030622,30]
[341175148,1730533832786,-500.0,0.00030622,30]
[341175149,1730533832796,-500.0,0.00030622,30]
[341175150,1730533832806,-500.0,0.00030622,30]
[341175151,1730533832815,-520.65211614,0.00030622,30]
[341175152,1730533832824,-500.0,0.00030622,30]
[341175153,1730533832834,-500.0,0.00030622,30]
[341175154,1730533832843,-500.0,0.00030622,30]
[341175155,1730533832852,-500.0,0.00030622,30]
[341175156,1730533832965,-500.0,0.00030622,30]
[341175157,1730533832975,-233.89054603,0.00030622,30]
[341175158,1730533832985,-800.92,0.00030684,3]
[341175159,1730533832994,-512.01599634,0.00030945,4]
[341175160,1730533833004,-500.0,0.00030945,4]
[341175161,1730533833013,-500.0,0.00030945,4]
[341175162,1730533833022,-231.02838913,0.00030945,4]
[341175163,1730533833032,-500.0,0.00030945,4]
[341175164,1730533833041,-800.92,0.00030958,3]
[341175165,1730533833051,-233.49635127,0.00031098,4]
[341175166,1730533833061,-500.0,0.00031098,4]
[341175167,1730533833071,-500.0,0.00031098,4]
[341175168,1730533833080,-500.0,0.00031098,4]
[341175169,1730533833090,-584.16204701,0.00031219,4]
[341175170,1730533833099,-800.92,0.00031232,3]
[341175171,1730533833110,-500.0,0.00031269,2]
[341175172,1730533833119,-318.44,0.00031372,4]
[341175173,1730533833130,-1353.68141371,0.00031505,2]
[341175174,1730533833139,-800.92,0.00031506,3]
[341175175,1730533833149,-516.016178,0.0003154,2]
[341175176,1730533833159,-165.0,0.00031644,2]
[341175177,1730533833168,-202.0,0.00031644,2]
[341175178,1730533833178,-153.0,0.00031649,2]
[341175179,1730533833187,-153.0,0.00031649,2]
[341175180,1730533833197,-153.0,0.00031649,2]
[341175181,1730533833207,-153.0,0.00031649,2]
[341175182,1730533833231,-153.0,0.00031649,2]
[341175183,1730533833243,-153.0,0.00031649,2]
[341175184,1730533833255,-153.0,0.00031649,2]
[341175185,1730533833265,-153.0,0.00031649,2]
[341175186,1730533833274,-153.0,0.00031649,2]
[341175187,1730533833284,-153.0,0.00031649,2]
[341175188,1730533833293,-153.0,0.00031649,2]
[341175189,1730533833302,-153.0,0.00031649,2]
[341175190,1730533833314,-153.0,0.00031649,2]
[341175191,1730533833323,-153.0,0.00031649,2]
[341175192,1730533833333,-153.0,0.00031649,2]
[341175193,1730533833343,-153.0,0.00031649,2]
[341175194,1730533833352,-153.0,0.00031649,2]
[341175195,1730533833362,-153.0,0.00031649,2]
[341175196,1730533833372,-153.0,0.00031649,2]
[341175197,1730533833381,-153.0,0.00031649,2]
[341175198,1730533833390,-153.0,0.00031649,2]
[341175199,1730533833399,-780.02526784,0.0003178,3]
[341175200,1730533833416,-20.89473216,0.0003178,3]
[341175201,1730533833426,-196.636,0.00032043,2]
[341175202,1730533833435,-426.85,0.00032043,2]
[341175203,1730533833445,-2274.17165669,0.00032043,2]
[341175206,1730533838835,-120.82834331,0.00032043,2]
[341175207,1730533838845,-1144.0,0.00032043,2]
[341175208,1730533838854,-800.92,0.00032054,3]
[341175209,1730533838863,-159.766,0.0003212,10]
[341175210,1730533838872,-800.92,0.00032328,3]
[341175211,1730533838882,-743.11155278,0.00032487,2]
[341175219,1730533840802,-610.56986093,0.00032487,2]
[341175220,1730533840811,-800.92,0.00032602,3]
[341175221,1730533840820,-1000.0,0.00032639,2]
[341175222,1730533840831,-500.0,0.00032876,7]
[341175223,1730533840840,-800.92,0.00032876,3]
[341175224,1730533840848,-232.01348,0.00032877,120]
[341175225,1730533840858,-167.192241,0.00032926,2]
[341175226,1730533840867,-770.909436,0.00032926,2]
[341175227,1730533840876,-513.320353,0.00032926,2]
[341175228,1730533840885,-167.192241,0.00032926,2]
[341175229,1730533840894,-410.145135,0.00032926,2]
[341175230,1730533840904,-256.660177,0.00032926,2]
[341175231,1730533840913,-165.576501,0.00032926,2]
[341175232,1730533840922,-500.0,0.00033026,5]
[341175233,1730533840931,-3468.98278726,0.00033105,2]
[341175234,1730533840941,-800.92,0.0003315,3]
[341175235,1730533840950,-485.91811707,0.00033158,2]
[341175236,1730533840959,-150.71122916,0.00033168,2]
[341175237,1730533840969,-292.78837642,0.00033168,2]
[341175238,1730533840979,-77790.31682392,0.00033205,30]
[341175239,1730533840988,-209.0,0.00033205,2]
[341175240,1730533840997,-204.0,0.00033226,2]
[341175241,1730533841007,-500.0,0.00033257,7]
[341175242,1730533841016,-340.07563895,0.00033257,7]
[341175243,1730533841025,-208.88,0.00033257,2]
[341175244,1730533841034,-208.88,0.00033257,2]
[341175245,1730533841043,-208.88,0.00033257,2]
[341175246,1730533841052,-208.88,0.00033257,2]
[341175247,1730533841061,-208.88,0.00033257,2]
[341175248,1730533841071,-208.88,0.00033257,2]
[341175249,1730533841080,-208.88,0.00033257,2]
[341175250,1730533841089,-208.88,0.00033257,2]
[341175251,1730533841099,-208.88,0.00033257,2]
[341175252,1730533841108,-208.88,0.00033257,2]
[341175253,1730533841117,-350.21,0.00033258,30]
[341175254,1730533841127,-34929.04257751,0.00033258,10]
[341175263,1730533843696,-40006.34432524,0.00033258,10]
[341175272,1730533846643,-161389.58014985,0.00033258,10]
[341175273,1730533846652,-18016.76926768,0.00033258,2]
[341175274,1730533846662,-3825.67542608,0.00033258,2]
[341175275,1730533846671,-6479.91272606,0.00033258,2]
[341175276,1730533846682,-50920.7499517,0.00033258,2]
[341175277,1730533846691,-10143.41595505,0.00033258,2]
[341175278,1730533846700,-2651.21577137,0.00033258,2]
[341175279,1730533846710,-1104.48864,0.0003326,7]
[341175280,1730533846719,-17652.0,0.00033269,30]
[341175281,1730533846732,-503.90401562,0.00033273,5]
[341175282,1730533846745,-500.36380487,0.00033273,5]
[341175283,1730533846755,-502.1058155,0.00033273,5]
[341175284,1730533846764,-501.85352288,0.00033273,12]
[341175285,1730533846773,-500.33932683,0.00033273,12]
[341175286,1730533846782,-1011.0,0.00033274,30]
[341175287,1730533846791,-4316.54883796,0.00033282,30]
[341175288,1730533846801,-971.33,0.00033282,30]
[341175289,1730533846811,-10000.0,0.00033283,30]
[341175290,1730533846820,-10000.0,0.00033283,30]
[341175291,1730533846830,-805.61391729,0.00033283,30]
[341175296,1730534256686,164.567282,0.00013973,2]
[341175337,1730534730180,-166.351629,0.00028939,2]
[341175338,1730534730201,-283.12729224,0.00029364,2]
[341175339,1730534756742,163.273978,0.00013973,2]
[341175346,1730534826099,-186.62819449,0.00029364,2]
[341175347,1730534826122,-139.01536722,0.00029446,2]
[341175349,1730534951168,-174.9675458,0.00029333,2]
[341175350,1730534951192,-529.904333,0.00029402,2]
[341175351,1730534951214,-455.99131278,0.00029446,2]
[341175352,1730534951238,-4730.8998919,0.00029449,2]
[341175353,1730534951261,-279.528676,0.0002947,2]
[341175354,1730534951284,-160.041766,0.00029597,2]
[341175396,1730535032697,-151.0,0.0003,120]
[341175397,1730535032708,-529.904333,0.00030087,2]
[341175398,1730535032718,-160.041766,0.00030111,2]
[341175399,1730535032728,-177.167873,0.00030225,2]
[341175400,1730535032739,-177.167873,0.00030301,2]
[341175401,1730535032748,-177.167873,0.00030376,2]
[341175402,1730535032759,-160.041766,0.00030625,2]
[341175403,1730535032770,-529.904333,0.00030772,2]
[341175404,1730535032780,-465.23777434,0.00030833,2]
[341175405,1730535032791,-160.041766,0.00031139,2]
[341175406,1730535032801,-151.0,0.00031233,120]
[341175407,1730535032810,-400.0,0.00031497,2]
[341175408,1730535032819,-599.68710245,0.00031498,4]
[341175409,1730535032829,-521.87,0.00031498,4]
[341175410,1730535032838,-5000.0,0.00031498,2]
[341175411,1730535032847,-400.0,0.00031498,2]
[341175412,1730535032857,-500.0,0.00031499,4]
[341175413,1730535032867,-500.0,0.00031499,3]
[341175414,1730535032877,-500.0,0.00031499,4]
[341175415,1730535032886,-624.75061339,0.00031499,4]
[341175416,1730535032896,-10000.0,0.000315,5]
[341175417,1730535032905,-518.8942384,0.00031504,4]
[341175418,1730535032915,-530.61863581,0.00031504,4]
[341175419,1730535032926,-503.30402197,0.00031504,2]
[341175420,1730535032938,-554.50828581,0.00031505,4]
[341175421,1730535032947,-500.0,0.00031505,4]
[341175422,1730535032957,-233.65,0.00031773,4]
[341175424,1730535032969,-500.0,0.00031773,3]
[341175426,1730535032980,-153.0,0.00031807,2]
[341175428,1730535032989,-153.0,0.00031807,2]
[341175430,1730535032999,-2448.95569204,0.00031952,2]
[341175432,1730535033008,-500.0,0.00032047,3]
[341175434,1730535033018,-3326.21577296,0.00032051,2]
[341175437,1730535033030,-706.99,0.00032051,2]
[341175465,1730535040741,-966.79422704,0.00032051,2]
[341175466,1730535040750,-150.0,0.00032052,2]
[341175467,1730535040760,-159.988,0.00032052,2]
[341175468,1730535040769,-252.69,0.00032052,2]
[341175469,1730535040778,-151.852,0.00032052,2]
[341175470,1730535040788,-531.411,0.00032052,2]
[341175471,1730535040798,-2394.0,0.00032052,2]
[341175472,1730535040808,-745.67428414,0.00032052,2]
[341175473,1730535040820,-396.32571586,0.00032052,2]
[341175474,1730535040830,-500.0,0.00032321,3]
[341175475,1730535040940,-159.72,0.0003245,30]
[341175476,1730535040950,-151.0,0.00032466,120]
[341175477,1730535040959,-500.0,0.00032595,3]
[341175478,1730535040969,-153.0,0.00032685,2]
[341175479,1730535040978,-174.93098078,0.00032685,7]
[341175480,1730535040987,-2448.95569203,0.0003273,2]
[341175481,1730535040996,-500.0,0.00032783,2]
[341175482,1730535041006,-500.0,0.00032869,3]
[341175483,1730535041016,-500.0,0.00032874,2]
[341175484,1730535041025,-500.0,0.00032874,2]
[341175485,1730535041035,-500.0,0.00032874,2]
[341175486,1730535041048,-497.20151253,0.00032874,2]
[341175487,1730535041057,-500.0,0.00032874,2]
[341175488,1730535041066,-215.20467649,0.00032874,2]
[341175489,1730535041075,-103.1126819,0.00032874,2]
[341175490,1730535042464,-365.121,0.00031814,2]
[341175491,1730535042475,-180.03080185,0.00032874,2]
[341175492,1730535042486,-334.96919555,0.00032874,2]
[341175494,1730535043721,-165.03080445,0.00032874,2]
[341175495,1730535043730,-500.0,0.00032874,2]
[341175496,1730535043739,-199.86379885,0.00032874,2]
[341175497,1730535043749,-500.0,0.00032874,2]
[341175498,1730535043758,-500.0,0.00032874,2]
[341175499,1730535043768,-500.0,0.00032874,2]
[341175500,1730535043777,-500.0,0.00032874,2]
[341175501,1730535043786,-500.0,0.00032874,2]
[341175502,1730535043796,-500.0,0.00032874,2]
[341175503,1730535043805,-500.0,0.00032874,2]
[341175504,1730535043815,-500.0,0.00032874,2]
[341175505,1730535043824,-439.80875093,0.00032874,2]
[341175506,1730535043834,-2306.63643071,0.00032875,2]
[341175507,1730535043846,-2693.36356929,0.00032875,2]
[341175508,1730535043856,-500.0,0.00032876,7]
[341175509,1730535043866,-174.01011,0.00032877,120]
[341175510,1730535043876,-211.079098,0.00032904,2]
[341175511,1730535043885,-153.0,0.00032904,2]
[341175512,1730535043894,-153.0,0.00032904,2]
[341175513,1730535043904,-324.0370013,0.00032904,2]
[341175514,1730535043913,-211.079098,0.00032904,2]
[341175515,1730535043922,-238.3008196,0.00032904,2]
[341175516,1730535043932,-210.7668013,0.00032904,2]
[341175517,1730535043941,-153.0,0.00032904,2]
[341175518,1730535043952,-303.0898104,0.00032904,2]
[341175519,1730535043961,-153.0,0.00032904,2]
[341175520,1730535043970,-153.0,0.00032904,2]
[341175521,1730535043980,-153.0,0.00032904,2]
[341175522,1730535043990,-303.0898104,0.00032904,2]
[341175523,1730535044000,-153.0,0.00032904,2]
[341175524,1730535044009,-303.0898104,0.00032904,2]
[341175525,1730535044020,-153.0,0.00032904,2]
[341175526,1730535044029,-303.0898104,0.00032904,2]
[341175527,1730535044040,-153.86584,0.00032926,2]
[341175528,1730535044053,-151.0,0.00033,2]
[341175529,1730535044068,-223.19241877,0.000331,7]
[341175530,1730535044078,-461.34111712,0.00033118,2]
[341175531,1730535044088,-500.0,0.00033139,5]
[341175532,1730535044098,-500.0,0.00033143,3]
[341175533,1730535044108,-151.0,0.00033151,2]
[341175534,1730535044117,-187.90994902,0.00033157,2]
[341175535,1730535044128,-188.32,0.0003325,30]
[341175536,1730535044138,-234.23070114,0.00033257,2]
[341175537,1730535044149,-5000.0,0.00033282,120]
[341175538,1730535044160,-7054.38608271,0.00033283,30]
[341175539,1730535044170,-3726.46252666,0.000333,2]
[341175540,1730535044179,-183.774732,0.00033337,2]
[341175541,1730535044189,-179.471352,0.00033337,2]
[341175542,1730535044199,-770.909436,0.00033337,2]
[341175543,1730535044209,-513.320353,0.00033337,2]
[341175544,1730535044219,-410.145135,0.00033337,2]
[341175545,1730535044228,-256.660177,0.00033337,2]
[341175546,1730535044237,-500.0,0.00033417,3]
[341175547,1730535044248,-178.422973,0.00033475,2]
[341175548,1730535044257,-187.90994902,0.00033481,2]
[341175549,1730535044267,-600.0,0.00033497,2]
[341175550,1730535044276,-2448.95569203,0.00033509,2]
[341175551,1730535044286,-5000.0,0.00033578,120]
[341175552,1730535044298,-153.0,0.00033579,2]
[341175553,1730535044307,-153.0,0.00033579,2]
[341175554,1730535044316,-153.0,0.00033579,2]
[341175555,1730535044325,-153.0,0.00033579,2]
[341175556,1730535044333,-153.0,0.00033579,2]
[341175557,1730535044343,-153.0,0.00033579,2]
[341175558,1730535044352,-153.0,0.00033579,2]
[341175559,1730535044362,-153.0,0.00033579,2]
[341175560,1730535044371,-153.0,0.00033579,2]
[341175561,1730535044381,-153.0,0.00033579,2]
[341175562,1730535044389,-153.0,0.00033579,2]
[341175563,1730535044399,-153.0,0.00033579,2]
[341175564,1730535044408,-153.0,0.00033579,2]
[341175565,1730535044417,-153.0,0.00033579,2]
[341175566,1730535044426,-153.0,0.00033579,2]
[341175567,1730535044434,-153.0,0.00033579,2]
[341175568,1730535044443,-153.0,0.00033579,2]
[341175569,1730535044452,-153.0,0.00033579,2]
[341175570,1730535044463,-153.0,0.00033579,2]
[341175571,1730535044472,-153.0,0.00033579,2]
[341175572,1730535044481,-153.0,0.00033579,2]
[341175573,1730535044490,-153.0,0.00033579,2]
[341175574,1730535044499,-153.0,0.00033579,2]
[341175575,1730535044508,-153.0,0.00033579,2]
[341175576,1730535044518,-153.0,0.00033579,2]
[341175577,1730535044528,-153.0,0.00033579,2]
[341175578,1730535044539,-153.0,0.00033579,2]
[341175579,1730535044552,-153.0,0.00033579,2]
[341175580,1730535044563,-153.0,0.00033579,2]
[341175581,1730535044573,-153.0,0.00033579,2]
[341175582,1730535044582,-153.0,0.00033579,2]
[341175583,1730535044592,-153.0,0.00033579,2]
[341175584,1730535044601,-153.0,0.00033579,2]
[341175585,1730535044611,-153.0,0.00033579,2]
[341175586,1730535044620,-153.0,0.00033579,2]
[341175587,1730535044629,-153.0,0.00033579,2]